{"text_format":"3","workbook":"xlsx","n_sheets":4,"sheets":["중요 시점","로드맵","정보","차트 데이터"],"not_rendered":{"charts":1,"defined_names":2},"read":"whole","date_system":"1900"}

{"sheet":"중요 시점","index":0,"n_rows":27,"n_cols":5,"rows_kept":27}
["이 워크시트에 중요 시점 및 활동을 입력하여 로드맵을 작성합니다.\nC1 셀에는 이 워크시트의 제목이 표시됩니다. \n정보 워크시트에는 화면을 읽는 독자를 위한 지침을 포함하여 이 워크시트를 사용하는 방법에 대한 정보가 표시됩니다.\n추가 지침을 보려면 A 열 아래로 계속 이동합니다.",null,"중요 시점"]
["C2:E2 셀에는 표 머리글이 표시됩니다. 특정 항목을 정렬하거나 찾으려면 정렬 및 필터 옵션을 사용합니다.\nC3 셀부터 표에 날짜를 포함하는 중요 시점을 입력하고, 중요 시점의 차트 작성 위치를 설정합니다.\nB 열은 숨겨져 있습니다. 스크롤 막대를 사용하여 시간 표시줄의 청크를 보기 위해 이 데이터에서 생성된 차트입니다. B 열은 스크롤 막대가 증분될 때 차트를 작성할 중요 시점을 결정하는 데 도움이 됩니다. \n경고: B 열의 내용을 삭제하거나 수정하면 이 통합 문서에 작성된 차트의 무결성이 손상될 수 있습니다.","번호","위치​​","날짜","중요 시점"]
["C1 셀에 날짜 및 중요 시점의 차트를 작성하기 위한 위치를 입력합니다. 시간 표시줄 위에 중요 시점의 차트를 작성하려면 1에서 3 사이의 양수를 입력합니다. 시간 표시줄 아래에 중요 시점의 차트를 작성하려면 1에서 3 사이의 음수를 입력합니다.\n표의 D 열과 E 열에 날짜와 중요 시점 또는 활동을 입력합니다.\n오른쪽 표의 새 행에 대해 각각 이 패턴을 반복합니다.\n3 행부터 26 행까지 샘플 데이터가 제공됩니다. 샘플 콘텐츠를 수정하거나 삭제하여 고유한 로드맵을 작성합니다.\n다음 지침을 보려면 A27 셀로 이동합니다.",{"$f":"ROW($A1)","v":1},1,{"$f":"TODAY()","v":"2018-06-29"},"시작"]
[null,{"$f":"ROW($A2)","v":2},-2,{"$f":"D3+10","v":"2018-07-09"},"문제 분석\n활동 1"]
[null,3,1,{"$f":"D4+20","v":"2018-07-29"},"비즈니스 사례 개발\n활동 1\n활동 2"]
[null,{"$f":"ROW($A4)","v":4},-1,{"$f":"D5+30","v":"2018-08-28"},"프레젠테이션 검토"]
[null,{"$f":"ROW($A5)","v":5},{"v":-0.5,"d":"-1"},{"$f":"D6+40","v":"2018-10-07"},"실무 킥오프\n활동 1\n활동 2"]
[null,{"$f":"ROW($A6)","v":6},2,{"$f":"D7+50","v":"2018-11-26"},"실무 조정\n활동 1\n활동 2\n활동 3"]
[null,7,{"v":0.5,"d":"1"},{"$f":"D8+60","v":"2019-01-25"},"관련자 대량 구입"]
[null,8,-1,{"$f":"D9+70","v":"2019-04-05"},"리소스 선택"]
[null,9,{"v":0.5,"d":"1"},{"$f":"D10+80","v":"2019-06-24"},"팀 만들기\n활동 1 "]
[null,10,-2,{"$f":"D11+90","v":"2019-09-22"},"팀 킥오프\n활동 1 \n활동 2\n활동 3\n활동 4"]
[null,11,3,{"$f":"D12+100","v":"2019-12-31"},"데이터 수집 시작"]
[null,12,-1,{"$f":"D13+90","v":"2020-03-30"},"데이터 분석"]
[null,13,1,{"$f":"D14+80","v":"2020-06-18"},"디자인"]
[null,14,1,{"$f":"D15+70","v":"2020-08-27"},"개념 증명"]
[null,15,-3,{"$f":"D16+60","v":"2020-10-26"},"테스트 및 분석"]
[null,16,-2,{"$f":"D17+50","v":"2020-12-15"},"다시 디자인"]
[null,17,2,{"$f":"D18+40","v":"2021-01-24"},"다시 개발"]
[null,18,-1,{"$f":"D19+30","v":"2021-02-23"},"테스트 및 분석"]
[null,19,1,{"$f":"D20+20","v":"2021-03-15"},"다시 디자인"]
[null,20,-3,{"$f":"D21+10","v":"2021-03-25"},"다시 개발"]
[null,21,2,{"$f":"D22+20","v":"2021-04-14"},"최종 테스트"]
[null,22,1,{"$f":"D23+30","v":"2021-05-14"},"베타 테스트"]
[null,23,-3,{"$f":"D24+40","v":"2021-06-23"},"검토"]
[null,24,-2,{"$f":"D25+50","v":"2021-08-12"},"마케팅에 릴리스"]
["로드맵 중요 시점 표에 행을 더 추가하려면 이 행 위에 새 행을 삽입하면 됩니다.\n이 워크시트에는 추가 지침이 없습니다.",null,"중요 시점을 더 추가하려면 이 줄 위에 새 행을 삽입합니다."]

{"sheet":"로드맵","index":1,"n_rows":3,"n_cols":4,"rows_kept":3}
["이 워크시트에는 중요 시점 워크시트의 중요 시점을 표시하는 차트가 표시됩니다. \nB2, C2, D2 셀에는 연도가 표시되며 스타일 머리글 3이 적용되어 있습니다.\n한 번에 10개의 중요 시점 차트가 작성됩니다. \nB4:D4 셀의 스크롤 막대를 사용하여 로드맵을 탐색합니다.\nB3:D3 셀에는 시간 표시줄 연도가 표시됩니다.\n이 워크시트에는 추가 지침이 없습니다."]
[]
[null,{"$f":"'차트 데이터'!B20","v":2018},{"$f":"'차트 데이터'!B21","v":""},{"$f":"'차트 데이터'!B22","v":2019}]

{"sheet":"정보","index":2,"n_rows":5,"n_cols":1,"rows_kept":5}
["이 통합 문서 정보"]
["화면을 읽는 독자를 위한 가이드"]
["이 통합 문서에는 4개의 워크시트가 있습니다. \n\n중요 시점\n로드맵\n정보\n차트 데이터(숨김)\n\n각 워크시트의 A1 셀부터 A 열에는 각 워크시트에 대한 지침이 표시됩니다. 숨겨진 텍스트로 작성됩니다. 각 단계는 해당 행의 정보를 안내합니다. 별도로 명시되지 않는 한, 각 후속 단계는 A2, A3 셀 등에서 계속됩니다. 예를 들어 지침 텍스트에서 다음 단계를 보려면 “A6 셀로 이동”하도록 지시할 수 있습니다. \n\n숨겨진 텍스트는 인쇄되지 않습니다.\n\n워크시트에서 이러한 지침을 제거하려면 A 열을 삭제하면 됩니다.\n"]
["이 로드맵은 위치를 사용하여 중요 시점 및 활동 차트를 작성합니다. 위치를 통해 중요 시점 또는 활동에 가중치를 추가할 수 있습니다. 가중치 기본 설정에 따라 값을 조정하면 됩니다. 예를 들어 중요 시점/활동 3은 중요 시점/활동 2보다 가중치가 높을 수 있습니다. 차트에서 이를 표시하려면 중요 시점/활동 3의 위치 값을 중요 시점/활동 2보다 높게 지정하면 됩니다.  \n"]
["이것이 이 워크시트의 마지막 지침입니다."]

{"sheet":"차트 데이터","index":3,"n_rows":26,"n_cols":4,"rows_kept":26,"hidden":true}
["이 워크시트에는 동적 차트 작성을 위한 데이터가 표시됩니다. 이 워크시트는 삭제하지 마세요.\n이 워크 시트를 삭제하면 통합 문서의 동적 기능이 손상될 수 있습니다.","이 워크시트는 삭제하지 마세요."]
["B2 셀에는 표의 제목이 표시됩니다.","동적 차트 콘텐츠"]
["B3:D3 셀에는 표 머리글이 표시됩니다. \n이 표는 중요 시점 워크시트에 입력된 콘텐츠를 기준으로 자동 업데이트됩니다.\n경고: 이 표의 콘텐츠를 수정하거나 삭제하면 로드맵 워크시트에 있는 로드맵 차트의 동적 업데이트 기능이 손상될 수 있습니다.\n다음 지침을 보려면 A15 셀로 이동합니다.","날짜","이벤트","위치​​"]
[null,{"$f":"IFERROR(IF(LEN('중요 시점'!D3)=0,\"\",INDEX(로드맵중요시점[],'중요 시점'!$B3+$B$17,3)),\"\")","v":"2018-06-29"},{"$f":"IFERROR(IF(LEN('중요 시점'!E3)=0,\"\",INDEX(로드맵중요시점[],'중요 시점'!$B3+$B$17,4)),\"\")","v":"시작"},{"$f":"IFERROR(INDEX(로드맵중요시점[],'중요 시점'!$B3+$B$17,2),\"\")","v":1}]
[null,{"$f":"IFERROR(IF(LEN('중요 시점'!D4)=0,\"\",INDEX(로드맵중요시점[],'중요 시점'!$B4+$B$17,3)),\"\")","v":"2018-07-09"},{"$f":"IFERROR(IF(LEN('중요 시점'!E4)=0,\"\",INDEX(로드맵중요시점[],'중요 시점'!$B4+$B$17,4)),\"\")","v":"문제 분석\n활동 1"},{"$f":"IFERROR(INDEX(로드맵중요시점[],'중요 시점'!$B4+$B$17,2),\"\")","v":-2}]
[null,{"$f":"IFERROR(IF(LEN('중요 시점'!D5)=0,\"\",INDEX(로드맵중요시점[],'중요 시점'!$B5+$B$17,3)),\"\")","v":"2018-07-29"},{"$f":"IFERROR(IF(LEN('중요 시점'!E5)=0,\"\",INDEX(로드맵중요시점[],'중요 시점'!$B5+$B$17,4)),\"\")","v":"비즈니스 사례 개발\n활동 1\n활동 2"},{"$f":"IFERROR(INDEX(로드맵중요시점[],'중요 시점'!$B5+$B$17,2),\"\")","v":1}]
[null,{"$f":"IFERROR(IF(LEN('중요 시점'!D6)=0,\"\",INDEX(로드맵중요시점[],'중요 시점'!$B6+$B$17,3)),\"\")","v":"2018-08-28"},{"$f":"IFERROR(IF(LEN('중요 시점'!E6)=0,\"\",INDEX(로드맵중요시점[],'중요 시점'!$B6+$B$17,4)),\"\")","v":"프레젠테이션 검토"},{"$f":"IFERROR(INDEX(로드맵중요시점[],'중요 시점'!$B6+$B$17,2),\"\")","v":-1}]
[null,{"$f":"IFERROR(IF(LEN('중요 시점'!D7)=0,\"\",INDEX(로드맵중요시점[],'중요 시점'!$B7+$B$17,3)),\"\")","v":"2018-10-07"},{"$f":"IFERROR(IF(LEN('중요 시점'!E7)=0,\"\",INDEX(로드맵중요시점[],'중요 시점'!$B7+$B$17,4)),\"\")","v":"실무 킥오프\n활동 1\n활동 2"},{"$f":"IFERROR(INDEX(로드맵중요시점[],'중요 시점'!$B7+$B$17,2),\"\")","v":-0.5}]
[null,{"$f":"IFERROR(IF(LEN('중요 시점'!D8)=0,\"\",INDEX(로드맵중요시점[],'중요 시점'!$B8+$B$17,3)),\"\")","v":"2018-11-26"},{"$f":"IFERROR(IF(LEN('중요 시점'!E8)=0,\"\",INDEX(로드맵중요시점[],'중요 시점'!$B8+$B$17,4)),\"\")","v":"실무 조정\n활동 1\n활동 2\n활동 3"},{"$f":"IFERROR(INDEX(로드맵중요시점[],'중요 시점'!$B8+$B$17,2),\"\")","v":2}]
[null,{"$f":"IFERROR(IF(LEN('중요 시점'!D9)=0,\"\",INDEX(로드맵중요시점[],'중요 시점'!$B9+$B$17,3)),\"\")","v":"2019-01-25"},{"$f":"IFERROR(IF(LEN('중요 시점'!E9)=0,\"\",INDEX(로드맵중요시점[],'중요 시점'!$B9+$B$17,4)),\"\")","v":"관련자 대량 구입"},{"$f":"IFERROR(INDEX(로드맵중요시점[],'중요 시점'!$B9+$B$17,2),\"\")","v":0.5}]
[null,{"$f":"IFERROR(IF(LEN('중요 시점'!D10)=0,\"\",INDEX(로드맵중요시점[],'중요 시점'!$B10+$B$17,3)),\"\")","v":"2019-04-05"},{"$f":"IFERROR(IF(LEN('중요 시점'!E10)=0,\"\",INDEX(로드맵중요시점[],'중요 시점'!$B10+$B$17,4)),\"\")","v":"리소스 선택"},{"$f":"IFERROR(INDEX(로드맵중요시점[],'중요 시점'!$B10+$B$17,2),\"\")","v":-1}]
[null,{"$f":"IFERROR(IF(LEN('중요 시점'!D11)=0,\"\",INDEX(로드맵중요시점[],'중요 시점'!$B11+$B$17,3)),\"\")","v":"2019-06-24"},{"$f":"IFERROR(IF(LEN('중요 시점'!E11)=0,\"\",INDEX(로드맵중요시점[],'중요 시점'!$B11+$B$17,4)),\"\")","v":"팀 만들기\n활동 1 "},{"$f":"IFERROR(INDEX(로드맵중요시점[],'중요 시점'!$B11+$B$17,2),\"\")","v":0.5}]
[null,{"$f":"IFERROR(IF(LEN('중요 시점'!D12)=0,\"\",INDEX(로드맵중요시점[],'중요 시점'!$B12+$B$17,3)),\"\")","v":"2019-09-22"},{"$f":"IFERROR(IF(LEN('중요 시점'!E12)=0,\"\",INDEX(로드맵중요시점[],'중요 시점'!$B12+$B$17,4)),\"\")","v":"팀 킥오프\n활동 1 \n활동 2\n활동 3\n활동 4"},{"$f":"IFERROR(INDEX(로드맵중요시점[],'중요 시점'!$B12+$B$17,2),\"\")","v":-2}]
[]
["로드맵을 스크롤하는 기능은 증분 값을 사용하여 수행됩니다. B15 셀에는 이 기능의 제목이 표시됩니다.\nB16 셀과 B17 셀에는 머리글 및 단일 값을 포함하는 표가 표시됩니다.\n다음 지침을 보려면 A19 셀로 이동합니다.","스크롤 기능"]
[null,"행 증분"]
[null,0]
[]
["로드맵 차트는 시간 표시줄의 연도를 그립니다. 이 작업을 수행하려면 중요 지점 목록에서 연도를 캡처해야 합니다. \n이 구역의 제목은 B19 셀의 “연도”입니다. \nC20:C22 셀에 연도 값이 자동으로 생성됩니다.\n경고: 이러한 연도를 삭제하거나 수정하면 로드맵 차트의 차트 작성 정확도가 변경될 수 있습니다.\n다음 지침을 보려면 A24 셀로 이동합니다.","연도"]
[null,{"$f":"IFERROR(YEAR(B4),\"\")","v":2018},"<-- 로드맵의 시작 위치 연도"]
[null,{"$f":"IFERROR(IF(YEAR($B$9)=$B$20,\"\",YEAR($B$9)),\"\")","v":""},"<-- 로드맵의 중간 기간 연도. 로드맵의 시작 위치와 동일한 연도인 경우 공백일 수 있습니다."]
[null,{"$f":"IFERROR(IF(YEAR($B$13)=$B$20,\"\",YEAR($B$13)),\"\")","v":2019},"<-- 로드맵의 최종 위치 연도. 로드맵의 시작 위치와 동일한 연도인 경우 공백일 수 있습니다."]
[]
["로드맵 차트의 도넛형 표식에는 이 워크시트에 있는 동적 차트 콘텐츠의 날짜가 포함됩니다. 날짜는 C24 셀의 초기 날짜, C25 셀의 중간 날짜, C26 셀의 마지막 날짜입니다.\n이 워크시트에는 추가 지침이 없습니다.","초기 날짜",{"$f":"B4","v":"2018-06-29"}]
[null,"중간 날짜",{"$f":"B9","v":"2018-11-26"}]
[null,"마지막 날짜",{"$f":"B13","v":"2019-09-22"}]